[Event "2026 European Womens Championship"]
[Site "Batumi, GE"]
[Date "2026.05.30"]
[Round "6"]
[White "Atalik, Ekaterina"]
[Black "Orian, Noga"]
[Result "0-1"]
[Board "72"]
[TimeControl "5400+30"]
[WhiteFideId "4130189"]
[BlackFideId "2836475"]
[WhiteElo "2372"]
[BlackElo "2231"]
[WhiteTitle "IM"]
[BlackTitle "WIM"]
[WhiteClock "0:34:56"]
[BlackClock "0:06:13"]
[Variant "Standard"]

1. d4 {[%clk 1:30:57]}  Nf6 {[%clk 1:30:53]} 2. c4 {[%clk 1:31:14]}  e6 {[%clk 1:31:16]} 3. Nf3 {[%clk 1:31:22]}  b6 {[%clk 1:31:37]}
4. g3 {[%clk 1:31:27]}  Ba6 {[%clk 1:31:56]} 5. Qa4 {[%clk 1:31:33]}  Bb7 {[%clk 1:30:29]} 6. Bg2 {[%clk 1:31:41]}  c5 {[%clk 1:30:10]}
7. dxc5 {[%clk 1:30:39]}  bxc5 {[%clk 1:30:31]} 8. O-O {[%clk 1:30:38]}  Be7 {[%clk 1:30:14]} 9. Nc3 {[%clk 1:30:27]}  O-O {[%clk 1:30:17]}
10. Rd1 {[%clk 1:29:41]}  d6 {[%clk 1:29:47]} 11. Bg5 {[%clk 1:23:04]}  Qb6 {[%clk 1:24:41]} 12. Rd2 {[%clk 1:18:56]}  Rd8 {[%clk 1:23:58]}
13. Rad1 {[%clk 1:16:42]}  h6 {[%clk 1:22:06]} 14. Bxf6 {[%clk 1:11:59]}  Bxf6 {[%clk 1:22:17]} 15. Qb3 {[%clk 1:03:29]}  Be7 {[%clk 1:16:22]}
16. Nb5 {[%clk 1:03:03]}  d5 {[%clk 1:13:10]} 17. Ne1 {[%clk 0:53:01]}  Nc6 {[%clk 0:54:47]} 18. cxd5 {[%clk 0:50:34]}  Na5 {[%clk 0:53:35]}
19. Qa4 {[%clk 0:50:03]}  exd5 {[%clk 0:53:30]} 20. Na3 {[%clk 0:42:11]}  Bc6 {[%clk 0:50:29]} 21. Qc2 {[%clk 0:42:10]}  Bg5 {[%clk 0:43:51]}
22. f4 {[%clk 0:39:54]}  Bf6 {[%clk 0:43:54]} 23. Kf1 {[%clk 0:36:58]}  Bd4 {[%clk 0:33:35]} 24. Qf5 {[%clk 0:33:21]}  g6 {[%clk 0:25:09]}
25. Qg4 {[%clk 0:33:05]}  Bd7 {[%clk 0:24:47]} 26. Qf3 {[%clk 0:32:52]}  Bf5 {[%clk 0:24:44]} 27. g4 {[%clk 0:28:56]}  Be4 {[%clk 0:24:43]}
28. Qg3 {[%clk 0:29:19]}  Bxb2 {[%clk 0:24:09]} 29. Bxe4 {[%clk 0:25:19]}  dxe4 {[%clk 0:24:37]} 30. Nac2 {[%clk 0:24:19]}  Nc4 {[%clk 0:23:11]}
31. Rxd8+ {[%clk 0:23:54]}  Rxd8 {[%clk 0:23:40]} 32. Rxd8+ {[%clk 0:24:15]}  Qxd8 {[%clk 0:24:08]} 33. Ne3 {[%clk 0:22:52]}  Nxe3+ {[%clk 0:20:03]}
34. Qxe3 {[%clk 0:23:18]}  Qd4 {[%clk 0:20:07]} 35. Qb3 {[%clk 0:19:28]}  c4 {[%clk 0:19:09]} 36. Qa4 {[%clk 0:19:02]}  Bc3 {[%clk 0:15:32]}
37. Ng2 {[%clk 0:18:22]}  Kg7 {[%clk 0:15:40]} 38. h4 {[%clk 0:18:16]}  Bd2 {[%clk 0:14:25]} 39. h5 {[%clk 0:17:48]}  e3 {[%clk 0:14:01]}
40. Kg1 {[%clk 0:18:11]}  gxh5 {[%clk 0:11:46]} 41. gxh5 {[%clk 0:18:12]}  Qe4 {[%clk 0:10:49]} 42. Kh2 {[%clk 0:16:11]}  a5 {[%clk 0:10:06]}
43. Kg3 {[%clk 0:15:05]}  Bb4 {[%clk 0:06:46]} 44. a3 {[%clk 0:13:31]}  Bd2 {[%clk 0:01:37]} 45. Qd7 {[%clk 0:12:09]}  c3 {[%clk 0:28:26]}
46. Qg4+ {[%clk 0:42:16]}  Kf8 {[%clk 0:28:09]} 47. Qc8+ {[%clk 0:42:39]}  Ke7 {[%clk 0:24:52]} 48. f5 {[%clk 0:39:36]}  c2 {[%clk 0:18:20]}
49. Qc7+ {[%clk 0:39:58]}  Kf6 {[%clk 0:14:51]} 50. Qd6+ {[%clk 0:38:42]}  Kxf5 {[%clk 0:09:17]} 51. Nh4+ {[%clk 0:38:20]}  Kg5 {[%clk 0:08:11]}
52. Nf3+ {[%clk 0:37:48]}  Kxh5 {[%clk 0:07:34]} 53. Qc5+ {[%clk 0:37:24]}  f5 {[%clk 0:07:20]} 54. Qf8 {[%clk 0:34:16]}  Qg4+ {[%clk 0:07:40]}
55. Kh2 {[%clk 0:34:42]}  c1=Q {[%clk 0:07:28]} 56. Qf7+ {[%clk 0:34:30]}  Qg6 {[%clk 0:07:53]} 57. Qe7 {[%clk 0:34:56]}  Be1 {[%clk 0:06:13]} 0-1

[Event "2026 European Womens Championship"]
[Site "Batumi, GE"]
[Date "2026.05.30"]
[Round "6"]
[White "Tirpan, Ceren"]
[Black "Klek, Hanna Marie"]
[Result "1/2-1/2"]
[Board "73"]
[TimeControl "5400+30"]
[WhiteFideId "26385309"]
[BlackFideId "24670057"]
[WhiteElo "2209"]
[BlackElo "2369"]
[WhiteTitle "WFM"]
[BlackTitle "WGM"]
[WhiteClock "0:01:49"]
[BlackClock "0:01:38"]
[Variant "Standard"]

1. c4 {[%clk 1:30:57]}  e5 {[%clk 1:30:53]} 2. g3 {[%clk 1:31:23]}  c6 {[%clk 1:31:17]} 3. d4 {[%clk 1:31:49]}  e4 {[%clk 1:31:40]}
4. a3 {[%clk 1:32:14]}  d5 {[%clk 1:31:40]} 5. Nc3 {[%clk 1:32:38]}  h6 {[%clk 1:30:15]} 6. f3 {[%clk 1:29:48]}  exf3 {[%clk 1:30:11]}
7. Nxf3 {[%clk 1:30:09]}  Nf6 {[%clk 1:28:30]} 8. Bg2 {[%clk 1:29:47]}  Bd6 {[%clk 1:22:37]} 9. O-O {[%clk 1:21:16]}  Be6 {[%clk 1:19:31]}
10. cxd5 {[%clk 1:10:39]}  cxd5 {[%clk 1:19:31]} 11. Nb5 {[%clk 1:05:10]}  O-O {[%clk 1:16:28]} 12. Nxd6 {[%clk 0:58:57]}  Qxd6 {[%clk 1:14:35]}
13. Ne5 {[%clk 0:59:03]}  Ne4 {[%clk 1:12:36]} 14. Bf4 {[%clk 0:36:56]}  Qb6 {[%clk 1:10:54]} 15. Rf3 {[%clk 0:37:16]}  Nd7 {[%clk 0:56:04]}
16. Rb3 {[%clk 0:35:06]}  Qa6 {[%clk 0:56:08]} 17. Nxd7 {[%clk 0:35:10]}  Bxd7 {[%clk 0:56:30]} 18. Qd3 {[%clk 0:32:46]}  Rfe8 {[%clk 0:51:25]}
19. Rc1 {[%clk 0:27:38]}  b5 {[%clk 0:42:45]} 20. Rc7 {[%clk 0:17:07]}  Rad8 {[%clk 0:42:16]} 21. Bf1 {[%clk 0:09:21]}  g5 {[%clk 0:37:49]}
22. Bd2 {[%clk 0:09:07]}  Qb6 {[%clk 0:36:09]} 23. Rc1 {[%clk 0:09:30]}  Rc8 {[%clk 0:30:54]} 24. Bc3 {[%clk 0:08:34]}  a6 {[%clk 0:28:17]}
25. Qd1 {[%clk 0:06:21]}  Bg4 {[%clk 0:25:35]} 26. a4 {[%clk 0:05:40]}  Qf6 {[%clk 0:23:30]} 27. Be1 {[%clk 0:05:33]}  Rxc1 {[%clk 0:19:40]}
28. Qxc1 {[%clk 0:06:01]}  Qxd4+ {[%clk 0:18:34]} 29. e3 {[%clk 0:06:27]}  Qb6 {[%clk 0:13:01]} 30. Bc3 {[%clk 0:06:00]}  Rc8 {[%clk 0:12:04]}
31. Qe1 {[%clk 0:06:21]}  Nxc3 {[%clk 0:10:06]} 32. bxc3 {[%clk 0:06:19]}  Re8 {[%clk 0:09:37]} 33. axb5 {[%clk 0:06:43]}  Rxe3 {[%clk 0:09:19]}
34. Qf2 {[%clk 0:07:09]}  axb5 {[%clk 0:04:24]} 35. Rxb5 {[%clk 0:07:25]}  Qe6 {[%clk 0:03:53]} 36. Rxd5 {[%clk 0:04:17]}  Bf3 {[%clk 0:02:47]}
37. Rd3 {[%clk 0:02:52]}  Rxd3 {[%clk 0:03:10]} 38. Bxd3 {[%clk 0:03:18]}  Bc6 {[%clk 0:03:22]} 39. Bf1 {[%clk 0:02:03]}  Qe5 {[%clk 0:02:35]}
40. Qd4 {[%clk 0:02:05]}  Qf5 {[%clk 0:01:27]} 41. Qd8+ {[%clk 0:01:12]}  Kg7 {[%clk 0:01:36]} 42. Qd4+ {[%clk 0:01:26]}  Kg8 {[%clk 0:01:38]}
43. Qd8+ {[%clk 0:01:49]} 1/2-1/2

[Event "2026 European Womens Championship"]
[Site "Batumi, GE"]
[Date "2026.05.30"]
[Round "6"]
[White "Beydullayeva, Govhar"]
[Black "Rudzinska, Michalina"]
[Result "1-0"]
[Board "74"]
[TimeControl "5400+30"]
[WhiteFideId "13413015"]
[BlackFideId "1172883"]
[WhiteElo "2368"]
[BlackElo "2200"]
[WhiteTitle "WGM"]
[BlackTitle "WGM"]
[WhiteClock "0:11:59"]
[BlackClock "0:02:34"]
[Variant "Standard"]

1. d4 {[%clk 1:30:58]}  Nf6 {[%clk 1:30:53]} 2. Nf3 {[%clk 1:31:22]}  e6 {[%clk 1:31:02]} 3. Bf4 {[%clk 1:31:42]}  d5 {[%clk 1:29:43]}
4. e3 {[%clk 1:32:03]}  Bd6 {[%clk 1:28:49]} 5. Bd3 {[%clk 1:32:01]}  c5 {[%clk 1:28:22]} 6. dxc5 {[%clk 1:32:19]}  Bxf4 {[%clk 1:24:36]}
7. exf4 {[%clk 1:32:43]}  Qc7 {[%clk 1:23:32]} 8. Qd2 {[%clk 1:33:01]}  Qxc5 {[%clk 1:22:22]} 9. Nc3 {[%clk 1:33:19]}  Nc6 {[%clk 1:18:29]}
10. O-O {[%clk 1:33:22]}  O-O {[%clk 1:18:27]} 11. Rfe1 {[%clk 1:32:23]}  a6 {[%clk 1:14:11]} 12. Rad1 {[%clk 1:18:55]}  b5 {[%clk 1:13:11]}
13. Ne5 {[%clk 1:15:28]}  Bb7 {[%clk 1:10:22]} 14. a3 {[%clk 0:55:03]}  Rfd8 {[%clk 1:03:23]} 15. Qe2 {[%clk 0:50:17]}  b4 {[%clk 0:49:14]}
16. axb4 {[%clk 0:46:08]}  Nxb4 {[%clk 0:48:24]} 17. Na4 {[%clk 0:44:37]}  Qc7 {[%clk 0:46:16]} 18. c3 {[%clk 0:30:53]}  Nxd3 {[%clk 0:46:18]}
19. Qxd3 {[%clk 0:31:15]}  Ne4 {[%clk 0:34:37]} 20. Qd4 {[%clk 0:31:41]}  Rac8 {[%clk 0:32:32]} 21. Nb6 {[%clk 0:29:31]}  Rb8 {[%clk 0:21:54]}
22. Ned7 {[%clk 0:27:43]}  Nd6 {[%clk 0:20:47]} 23. Nxb8 {[%clk 0:25:28]}  Nb5 {[%clk 0:15:35]} 24. Qb4 {[%clk 0:20:15]}  Qxb6 {[%clk 0:15:20]}
25. c4 {[%clk 0:20:40]}  dxc4 {[%clk 0:13:43]} 26. Qe7 {[%clk 0:20:29]}  Rxb8 {[%clk 0:08:29]} 27. Rd7 {[%clk 0:20:51]}  Rf8 {[%clk 0:08:07]}
28. Rxb7 {[%clk 0:21:15]}  Qd8 {[%clk 0:06:19]} 29. Rxe6 {[%clk 0:16:47]}  Nd4 {[%clk 0:01:43]} 30. Qxd8 {[%clk 0:15:32]}  Rxd8 {[%clk 0:02:11]}
31. Rd6 {[%clk 0:12:20]}  Re8 {[%clk 0:02:34]} 32. Re7 {[%clk 0:11:59]} 1-0

[Event "2026 European Womens Championship"]
[Site "Batumi, GE"]
[Date "2026.05.30"]
[Round "6"]
[White "Siekanska, Maria"]
[Black "Mkrtchian, Lilit"]
[Result "0-1"]
[Board "75"]
[TimeControl "5400+30"]
[WhiteFideId "21852650"]
[BlackFideId "13300601"]
[WhiteElo "2203"]
[BlackElo "2366"]
[WhiteTitle "WIM"]
[BlackTitle "IM"]
[WhiteClock "0:15:13"]
[BlackClock "0:20:34"]
[Variant "Standard"]

1. e4 {[%clk 1:30:57]}  e6 {[%clk 1:30:24]} 2. d4 {[%clk 1:31:22]}  d5 {[%clk 1:30:40]} 3. Nc3 {[%clk 1:31:45]}  Bb4 {[%clk 1:30:05]}
4. e5 {[%clk 1:32:09]}  c5 {[%clk 1:30:07]} 5. a3 {[%clk 1:32:34]}  Bxc3+ {[%clk 1:29:58]} 6. bxc3 {[%clk 1:33:00]}  Qa5 {[%clk 1:30:10]}
7. Bd2 {[%clk 1:33:24]}  Qa4 {[%clk 1:30:27]} 8. h4 {[%clk 1:33:49]}  Nc6 {[%clk 1:29:25]} 9. h5 {[%clk 1:33:24]}  h6 {[%clk 1:28:13]}
10. Nf3 {[%clk 1:33:39]}  Nge7 {[%clk 1:28:22]} 11. Be2 {[%clk 1:32:13]}  b6 {[%clk 1:14:38]} 12. Qb1 {[%clk 1:24:38]}  Ba6 {[%clk 1:13:49]}
13. Qb3 {[%clk 1:21:39]}  Qxb3 {[%clk 1:06:03]} 14. cxb3 {[%clk 1:22:02]}  Bxe2 {[%clk 1:06:30]} 15. Kxe2 {[%clk 1:22:25]}  Na5 {[%clk 1:04:55]}
16. Rab1 {[%clk 1:17:44]}  c4 {[%clk 0:44:23]} 17. b4 {[%clk 1:18:00]}  Nb3 {[%clk 0:44:48]} 18. a4 {[%clk 1:17:50]}  Nxd2 {[%clk 0:43:20]}
19. Kxd2 {[%clk 1:17:18]}  f6 {[%clk 0:42:01]} 20. exf6 {[%clk 1:09:00]}  gxf6 {[%clk 0:42:26]} 21. Rbe1 {[%clk 1:09:05]}  Kf7 {[%clk 0:38:39]}
22. Nh4 {[%clk 1:05:24]}  Rhg8 {[%clk 0:35:46]} 23. Re2 {[%clk 1:00:20]}  Rg5 {[%clk 0:18:21]} 24. Rhe1 {[%clk 0:51:50]}  Rd8 {[%clk 0:09:52]}
25. Rxe6 {[%clk 0:50:22]}  Rd7 {[%clk 0:10:16]} 26. g3 {[%clk 0:46:09]}  Rxh5 {[%clk 0:10:14]} 27. f4 {[%clk 0:42:41]}  Ng6 {[%clk 0:07:32]}
28. Nxg6 {[%clk 0:39:40]}  Kxg6 {[%clk 0:08:00]} 29. Re8 {[%clk 0:38:18]}  Kf5 {[%clk 0:05:19]} 30. Ke3 {[%clk 0:34:04]}  Rg7 {[%clk 0:04:50]}
31. Rg1 {[%clk 0:26:10]}  Rh3 {[%clk 0:01:56]} 32. Kf2 {[%clk 0:26:20]}  h5 {[%clk 0:01:44]} 33. Rh8 {[%clk 0:14:30]}  Ke4 {[%clk 0:02:02]}
34. Re8+ {[%clk 0:10:32]}  Kf5 {[%clk 0:02:22]} 35. Rh8 {[%clk 0:10:39]}  Ke4 {[%clk 0:00:47]} 36. Re8+ {[%clk 0:11:04]}  Kd3 {[%clk 0:00:43]}
37. Re3+ {[%clk 0:11:13]}  Kd2 {[%clk 0:01:10]} 38. Rge1 {[%clk 0:11:06]}  h4 {[%clk 0:01:09]} 39. R1e2+ {[%clk 0:09:32]}  Kd1 {[%clk 0:01:21]}
40. gxh4 {[%clk 0:05:33]}  Rh2+ {[%clk 0:01:08]} 41. Kf3 {[%clk 0:05:21]}  Rh3+ {[%clk 0:29:59]} 42. Kf2 {[%clk 0:35:50]}  Rxh4 {[%clk 0:30:15]}
43. Re1+ {[%clk 0:30:28]}  Kc2 {[%clk 0:29:44]} 44. Kf3 {[%clk 0:23:05]}  Rgg4 {[%clk 0:22:08]} 45. f5 {[%clk 0:20:39]}  Rf4+ {[%clk 0:21:52]}
46. Kg3 {[%clk 0:20:58]}  Rhg4+ {[%clk 0:22:08]} 47. Kh3 {[%clk 0:21:24]}  Rg7 {[%clk 0:22:19]} 48. a5 {[%clk 0:17:46]}  Rxf5 {[%clk 0:21:45]}
49. Kh4 {[%clk 0:18:10]}  Rfg5 {[%clk 0:20:53]} 50. Re7 {[%clk 0:18:11]}  bxa5 {[%clk 0:21:12]} 51. bxa5 {[%clk 0:17:26]}  Kxc3 {[%clk 0:21:30]}
52. a6 {[%clk 0:15:46]}  Kxd4 {[%clk 0:21:00]} 53. Rb7 {[%clk 0:15:35]}  c3 {[%clk 0:20:14]} 54. Rd1+ {[%clk 0:15:13]}  Kc4 {[%clk 0:20:34]} 0-1

[Event "2026 European Womens Championship"]
[Site "Batumi, GE"]
[Date "2026.05.30"]
[Round "6"]
[White "Bulmaga, Irina"]
[Black "Antova, Gabriela"]
[Result "1/2-1/2"]
[Board "76"]
[TimeControl "5400+30"]
[WhiteFideId "13903063"]
[BlackFideId "2915235"]
[WhiteElo "2361"]
[BlackElo "2203"]
[WhiteTitle "IM"]
[BlackTitle "WGM"]
[WhiteClock "0:11:54"]
[BlackClock "0:20:41"]
[Variant "Standard"]

1. e4 {[%clk 1:30:54]}  d6 {[%clk 1:30:46]} 2. d4 {[%clk 1:31:12]}  Nf6 {[%clk 1:31:03]} 3. Nc3 {[%clk 1:31:24]}  e5 {[%clk 1:31:18]}
4. Nge2 {[%clk 1:31:22]}  Nc6 {[%clk 1:18:12]} 5. h3 {[%clk 1:28:25]}  g6 {[%clk 1:16:16]} 6. g3 {[%clk 1:22:49]}  Bg7 {[%clk 1:05:37]}
7. dxe5 {[%clk 1:06:06]}  dxe5 {[%clk 1:03:13]} 8. Qxd8+ {[%clk 1:06:21]}  Nxd8 {[%clk 1:02:59]} 9. Be3 {[%clk 0:57:19]}  Ne6 {[%clk 0:52:33]}
10. Bg2 {[%clk 0:50:19]}  b6 {[%clk 0:46:01]} 11. f4 {[%clk 0:45:39]}  Bb7 {[%clk 0:44:55]} 12. O-O {[%clk 0:45:30]}  Bh6 {[%clk 0:28:35]}
13. Nd5 {[%clk 0:37:30]}  Nd7 {[%clk 0:22:19]} 14. Kh2 {[%clk 0:32:53]}  exf4 {[%clk 0:20:00]} 15. gxf4 {[%clk 0:31:03]}  Bf8 {[%clk 0:16:25]}
16. f5 {[%clk 0:26:19]}  Bxd5 {[%clk 0:15:24]} 17. exd5 {[%clk 0:26:28]}  Bd6+ {[%clk 0:15:49]} 18. Kh1 {[%clk 0:25:36]}  Ng7 {[%clk 0:15:30]}
19. Nd4 {[%clk 0:17:01]}  O-O {[%clk 0:15:29]} 20. Bf4 {[%clk 0:11:19]}  Ne5 {[%clk 0:08:25]} 21. Rae1 {[%clk 0:07:39]}  Nc4 {[%clk 0:07:55]}
22. fxg6 {[%clk 0:05:04]}  hxg6 {[%clk 0:08:11]} 23. Bxd6 {[%clk 0:04:16]}  Nxd6 {[%clk 0:06:43]} 24. Nc6 {[%clk 0:04:30]}  Ngf5 {[%clk 0:06:48]}
25. Kg1 {[%clk 0:03:56]}  Rfe8 {[%clk 0:07:05]} 26. Kf2 {[%clk 0:03:24]}  a5 {[%clk 0:07:07]} 27. b3 {[%clk 0:02:59]}  Kg7 {[%clk 0:06:30]}
28. a4 {[%clk 0:03:12]}  Kf6 {[%clk 0:05:42]} 29. c3 {[%clk 0:02:33]}  Rxe1 {[%clk 0:04:11]} 30. Rxe1 {[%clk 0:02:59]}  Re8 {[%clk 0:04:37]}
31. Rxe8 {[%clk 0:01:43]}  Nxe8 {[%clk 0:05:04]} 32. b4 {[%clk 0:00:54]}  Ne7 {[%clk 0:05:27]} 33. Nxe7 {[%clk 0:00:46]}  Kxe7 {[%clk 0:05:51]}
34. Ke3 {[%clk 0:00:46]}  Nd6 {[%clk 0:03:52]} 35. Kd3 {[%clk 0:01:06]}  Nf5 {[%clk 0:02:36]} 36. bxa5 {[%clk 0:01:08]}  bxa5 {[%clk 0:03:02]}
37. Be4 {[%clk 0:01:21]}  Ng3 {[%clk 0:02:45]} 38. Bf3 {[%clk 0:01:37]}  Nf1 {[%clk 0:00:39]} 39. Bg2 {[%clk 0:01:42]}  Ng3 {[%clk 0:00:57]}
40. Kc4 {[%clk 0:00:46]}  Kd6 {[%clk 0:00:47]} 41. Bf3 {[%clk 0:14:51]}  Nf1 {[%clk 0:21:23]} 42. Kd4 {[%clk 0:14:25]}  Nd2 {[%clk 0:21:07]}
43. Bd1 {[%clk 0:11:41]}  f5 {[%clk 0:21:03]} 44. c4 {[%clk 0:11:11]}  Ne4 {[%clk 0:21:14]} 45. h4 {[%clk 0:11:20]}  Nc5 {[%clk 0:20:34]}
46. Bc2 {[%clk 0:11:48]}  Nd7 {[%clk 0:20:23]} 47. Bd1 {[%clk 0:11:54]}  Nc5 {[%clk 0:20:41]} 1/2-1/2

[Event "2026 European Womens Championship"]
[Site "Batumi, GE"]
[Date "2026.05.30"]
[Round "6"]
[White "Gaponenko, Inna"]
[Black "Mgeladze, Kesaria"]
[Result "1/2-1/2"]
[Board "77"]
[TimeControl "5400+30"]
[WhiteFideId "14101181"]
[BlackFideId "13621130"]
[WhiteElo "2331"]
[BlackElo "2147"]
[WhiteTitle "IM"]
[BlackTitle "WIM"]
[WhiteClock "0:02:03"]
[BlackClock "0:04:06"]
[Variant "Standard"]

1. e4 {[%clk 1:30:57]}  c5 {[%clk 1:30:56]} 2. Nf3 {[%clk 1:31:23]}  d6 {[%clk 1:31:22]} 3. d4 {[%clk 1:31:49]}  cxd4 {[%clk 1:31:47]}
4. Nxd4 {[%clk 1:32:16]}  Nf6 {[%clk 1:32:12]} 5. Nc3 {[%clk 1:32:40]}  a6 {[%clk 1:32:38]} 6. Be2 {[%clk 1:33:05]}  e5 {[%clk 1:32:51]}
7. Nb3 {[%clk 1:33:30]}  Be7 {[%clk 1:32:44]} 8. Be3 {[%clk 1:33:54]}  O-O {[%clk 1:31:40]} 9. g4 {[%clk 1:32:59]}  Be6 {[%clk 1:18:25]}
10. g5 {[%clk 1:33:08]}  Nfd7 {[%clk 1:17:25]} 11. Qd2 {[%clk 1:32:29]}  Qc7 {[%clk 1:08:31]} 12. O-O-O {[%clk 1:27:21]}  Nb6 {[%clk 0:31:05]}
13. f4 {[%clk 1:16:47]}  Nc4 {[%clk 0:29:53]} 14. Bxc4 {[%clk 1:16:14]}  Bxc4 {[%clk 0:30:18]} 15. f5 {[%clk 1:12:00]}  Rd8 {[%clk 0:29:48]}
16. Qf2 {[%clk 0:28:03]}  Nd7 {[%clk 0:27:42]} 17. Nd2 {[%clk 0:28:23]}  Rac8 {[%clk 0:24:04]} 18. f6 {[%clk 0:22:33]}  Bf8 {[%clk 0:23:20]}
19. fxg7 {[%clk 0:22:49]}  Bxg7 {[%clk 0:22:24]} 20. Nxc4 {[%clk 0:20:18]}  Qxc4 {[%clk 0:22:48]} 21. Rxd6 {[%clk 0:19:00]}  Nf8 {[%clk 0:20:20]}
22. Rxd8 {[%clk 0:11:37]}  Rxd8 {[%clk 0:20:46]} 23. Rf1 {[%clk 0:12:02]}  Ng6 {[%clk 0:18:08]} 24. Qe2 {[%clk 0:12:15]}  Qe6 {[%clk 0:16:39]}
25. Rd1 {[%clk 0:02:22]}  Rc8 {[%clk 0:16:02]} 26. Nd5 {[%clk 0:02:45]}  Nf4 {[%clk 0:10:13]} 27. Bxf4 {[%clk 0:01:53]}  exf4 {[%clk 0:10:39]}
28. c3 {[%clk 0:01:45]}  Re8 {[%clk 0:09:00]} 29. Re1 {[%clk 0:01:55]}  Qe5 {[%clk 0:08:26]} 30. Qg4 {[%clk 0:01:06]}  Rd8 {[%clk 0:07:27]}
31. Nxf4 {[%clk 0:01:23]}  Qa5 {[%clk 0:07:40]} 32. Kb1 {[%clk 0:00:49]}  Bxc3 {[%clk 0:06:25]} 33. Rc1 {[%clk 0:00:37]}  Bxb2 {[%clk 0:05:13]}
34. Kxb2 {[%clk 0:00:38]}  Qb4+ {[%clk 0:03:52]} 35. Ka1 {[%clk 0:01:08]}  Qd4+ {[%clk 0:04:05]} 36. Kb1 {[%clk 0:01:35]}  Qb4+ {[%clk 0:04:06]}
37. Ka1 {[%clk 0:02:03]} 1/2-1/2

[Event "2026 European Womens Championship"]
[Site "Batumi, GE"]
[Date "2026.05.30"]
[Round "6"]
[White "Mammadova, Gulnar"]
[Black "Poliakova, Varvara"]
[Result "0-1"]
[Board "78"]
[TimeControl "5400+30"]
[WhiteFideId "13403508"]
[BlackFideId "13518313"]
[WhiteElo "2325"]
[BlackElo "2108"]
[WhiteTitle "IM"]
[BlackTitle "WFM"]
[WhiteClock "0:20:07"]
[BlackClock "0:07:49"]
[Variant "Standard"]

1. e4 {[%clk 1:30:56]}  c5 {[%clk 1:30:43]} 2. Nc3 {[%clk 1:31:15]}  d6 {[%clk 1:30:43]} 3. Bb5+ {[%clk 1:31:07]}  Bd7 {[%clk 1:29:31]}
4. Bxd7+ {[%clk 1:31:20]}  Qxd7 {[%clk 1:29:38]} 5. d4 {[%clk 1:31:23]}  cxd4 {[%clk 1:29:58]} 6. Qxd4 {[%clk 1:31:44]}  Nc6 {[%clk 1:30:04]}
7. Qd3 {[%clk 1:31:51]}  g6 {[%clk 1:28:50]} 8. Nf3 {[%clk 1:31:52]}  Bg7 {[%clk 1:29:05]} 9. O-O {[%clk 1:31:59]}  Nf6 {[%clk 1:28:14]}
10. Nd5 {[%clk 1:32:14]}  O-O {[%clk 1:23:16]} 11. c3 {[%clk 1:31:02]}  Rac8 {[%clk 1:10:09]} 12. Bg5 {[%clk 1:27:37]}  Nxd5 {[%clk 1:02:21]}
13. exd5 {[%clk 1:27:56]}  Ne5 {[%clk 1:01:59]} 14. Nxe5 {[%clk 1:28:07]}  Bxe5 {[%clk 1:01:40]} 15. f4 {[%clk 1:25:35]}  Bg7 {[%clk 0:57:29]}
16. f5 {[%clk 1:23:05]}  Rfe8 {[%clk 0:51:02]} 17. Rad1 {[%clk 1:17:03]}  Be5 {[%clk 0:45:48]} 18. Bh6 {[%clk 1:06:36]}  Qa4 {[%clk 0:41:22]}
19. Qh3 {[%clk 1:03:07]}  Bf6 {[%clk 0:38:26]} 20. a3 {[%clk 0:59:09]}  Qh4 {[%clk 0:33:54]} 21. Qxh4 {[%clk 0:54:27]}  Bxh4 {[%clk 0:34:04]}
22. Be3 {[%clk 0:54:53]}  b6 {[%clk 0:32:57]} 23. Bd4 {[%clk 0:52:00]}  Bg5 {[%clk 0:31:37]} 24. Rd3 {[%clk 0:49:19]}  Bh6 {[%clk 0:29:21]}
25. Rdf3 {[%clk 0:48:39]}  Bg7 {[%clk 0:25:01]} 26. Be3 {[%clk 0:46:02]}  Be5 {[%clk 0:22:37]} 27. g4 {[%clk 0:45:31]}  Rc4 {[%clk 0:20:45]}
28. h3 {[%clk 0:45:18]}  f6 {[%clk 0:19:15]} 29. g5 {[%clk 0:41:01]}  Rb8 {[%clk 0:15:51]} 30. gxf6 {[%clk 0:38:21]}  exf6 {[%clk 0:15:44]}
31. Bf4 {[%clk 0:37:50]}  g5 {[%clk 0:13:37]} 32. Bxe5 {[%clk 0:36:47]}  fxe5 {[%clk 0:13:00]} 33. Rg3 {[%clk 0:31:14]}  h6 {[%clk 0:13:05]}
34. Rg4 {[%clk 0:31:43]}  Rbc8 {[%clk 0:12:05]} 35. Kf2 {[%clk 0:21:07]}  Kf7 {[%clk 0:11:47]} 36. Rfg1 {[%clk 0:20:49]}  Kf6 {[%clk 0:11:49]}
37. h4 {[%clk 0:20:43]}  Kxf5 {[%clk 0:11:26]} 38. Rxc4 {[%clk 0:21:07]}  Rxc4 {[%clk 0:11:52]} 39. hxg5 {[%clk 0:21:34]}  hxg5 {[%clk 0:12:17]}
40. Ke3 {[%clk 0:21:40]}  Re4+ {[%clk 0:10:03]} 41. Kd3 {[%clk 0:20:49]}  g4 {[%clk 0:10:17]} 42. Rh1 {[%clk 0:21:01]}  g3 {[%clk 0:08:51]}
43. Rh5+ {[%clk 0:19:59]}  Kg4 {[%clk 0:08:35]} 44. Rh6 {[%clk 0:20:24]}  Kf3 {[%clk 0:07:49]} 45. Rxd6 {[%clk 0:20:07]}  g2 {[%clk 0:08:05]} 0-1